fUSD/lending_fUSD_20240324
["ID","MTS","AMOUNT","RATE_DAILY","PERIOD"]
[320296961,1711265432811,-1926.7925768,0.000179,2]
[320296962,1711265432825,-5724.64806399,0.000179,2]
[320296964,1711265432839,-27483.4393965,0.000179,2]
[320296966,1711265432849,-1323.61893097,0.000179,2]
[320296969,1711265432859,-157.21043943,0.000179,2]
[320296971,1711265432869,-2441.13398257,0.00017907,2]
[320296973,1711265432878,-173.51113776,0.00017982,2]
[320296974,1711265432888,-423.94786872,0.0001799,2]
[320296976,1711265432897,-150.0,0.00017995,2]
[320296978,1711265432907,-4804.59860014,0.00017996,2]
[320296980,1711265432917,-374.41256204,0.00017996,2]
[320296982,1711265432927,-155.0,0.00017996,2]
[320296984,1711265432937,-294.58559966,0.00017996,2]
[320296986,1711265432946,-204.67863809,0.00017996,2]
[320296988,1711265432956,-2377.56224868,0.00017996,2]
[320296990,1711265432965,-340.8221434,0.00017996,2]
[320296992,1711265432975,-729.94369266,0.00017996,2]
[320296994,1711265432985,-302.15018672,0.00017997,2]
[320296996,1711265432996,-155.43908341,0.00017997,2]
[320296998,1711265433005,-406.49784723,0.00017997,2]
[320297000,1711265433015,-598.90335726,0.00017997,2]
[320297002,1711265433025,-373.12638831,0.00017997,2]
[320297003,1711265433034,-199.68080828,0.00017997,2]
[320297004,1711265433044,-157.78220088,0.00017997,2]
[320297005,1711265433053,-202.78082817,0.00017997,2]
[320297006,1711265433063,-342.91041359,0.00017997,2]
[320297007,1711265433072,-300.26001809,0.00017997,2]
[320297008,1711265433082,-210.40645452,0.00017997,2]
[320297009,1711265433092,-155.53912365,0.00017998,2]
[320297010,1711265433101,-231.71394442,0.00017998,2]
[320297011,1711265433111,-215.19434287,0.00017998,2]
[320297012,1711265433120,-244.91149596,0.00017998,2]
[320297013,1711265433130,-164.46997739,0.00017998,2]
[320297014,1711265433139,-272.7870816,0.00017998,2]
[320297015,1711265433149,-292.07437806,0.00017998,2]
[320297016,1711265433159,-200.44143223,0.00017998,2]
[320297017,1711265433169,-462.42076002,0.00017998,2]
[320297018,1711265433179,-196.55703629,0.00017998,2]
[320297019,1711265433188,-1240.90270429,0.00017998,2]
[320297020,1711265433197,-184.99754998,0.00017998,2]
[320297021,1711265433210,-169.11230046,0.00017998,2]
[320297022,1711265433219,-613.3058386,0.00017998,2]
[320297023,1711265433229,-199.30530231,0.00017998,2]
[320297024,1711265433238,-155.17543428,0.00017998,2]
[320297025,1711265433247,-1799.26570636,0.00017998,2]
[320297026,1711265433257,-155.94510825,0.00017998,2]
[320297027,1711265433268,-2588.20517118,0.00017998,2]
[320297028,1711265433277,-784.28822622,0.00017998,2]
[320297029,1711265433287,-1319.63623355,0.00017998,2]
[320297030,1711265433296,-205.4830922,0.00017998,2]
[320297031,1711265433306,-1148.20995999,0.00017998,2]
[320297032,1711265433315,-466.63479585,0.00017998,2]
[320297033,1711265433324,-291.5834087,0.00017998,2]
[320297034,1711265433334,-202.74751577,0.00017998,2]
[320297035,1711265433343,-155.95942953,0.00017998,2]
[320297036,1711265433353,-211.91553231,0.00017998,2]
[320297037,1711265433362,-155.0,0.00017998,2]
[320297038,1711265433371,-191.20594923,0.00017998,2]
[320297039,1711265433381,-200.238887,0.00017998,2]
[320297040,1711265433390,-1470.2936848,0.00017998,2]
[320297041,1711265433716,-374.0547581,0.00017998,2]
[320297042,1711265433727,-2045.38283642,0.00017998,2]
[320297043,1711265433736,-156.81827234,0.00017998,2]
[320297044,1711265433746,-522.99400109,0.00017998,2]
[320297045,1711265433755,-1236.48384141,0.00017998,2]
[320297046,1711265433766,-208.07909199,0.00017998,2]
[320297047,1711265433775,-170.16504405,0.00017998,2]
[320297048,1711265433785,-158.51664638,0.00017998,2]
[320297049,1711265433794,-155.0,0.00017998,2]
[320297050,1711265433803,-155.41260931,0.00017998,2]
[320297051,1711265433813,-272.83762708,0.00017998,2]
[320297052,1711265433823,-192.96034403,0.00017998,2]
[320297053,1711265433833,-1051.94333094,0.00017999,2]
[320297054,1711265433842,-155.0,0.00017999,2]
[320297055,1711265433851,-358.44362408,0.00017999,2]
[320297056,1711265433861,-262.60246502,0.00017999,2]
[320297057,1711265433870,-177.33631868,0.00017999,2]
[320297058,1711265433880,-457.41388531,0.00017999,2]
[320297059,1711265433889,-174.96567751,0.00017999,2]
[320297060,1711265433898,-258.76088812,0.00017999,2]
[320297061,1711265433907,-2974.39341014,0.00017999,2]
[320297062,1711265433917,-276.14662123,0.00017999,2]
[320297063,1711265433928,-465.0,0.00017999,2]
[320297064,1711265433938,-447.0467282,0.00017999,2]
[320297065,1711265433947,-161.13662002,0.00017999,2]
[320297066,1711265433957,-180.52623049,0.00017999,2]
[320297067,1711265433966,-156.65321214,0.00017999,2]
[320297068,1711265433975,-204.96214585,0.00017999,2]
[320297069,1711265433984,-155.0,0.00017999,2]
[320297070,1711265433994,-222.04247804,0.00017999,2]
[320297071,1711265434003,-239.23385054,0.00017999,2]
[320297072,1711265434013,-2755.01227157,0.00017999,2]
[320297073,1711265434023,-400.0,0.00017999,2]
[320297074,1711265434032,-198.59519846,0.00017999,2]
[320297075,1711265434041,-155.24160727,0.00017999,2]
[320297076,1711265434051,-155.0,0.00017999,2]
[320297077,1711265434060,-155.68622422,0.00017999,2]
[320297078,1711265434069,-1883.56248326,0.00017999,2]
[320297079,1711265434078,-156.01569749,0.00017999,2]
[320297080,1711265434087,-383.051562,0.00017999,2]
[320297081,1711265434097,-308.86209755,0.00017999,2]
[320297082,1711265434107,-1619.62800064,0.00017999,2]
[320297083,1711265434116,-155.0,0.00017999,2]
[320297084,1711265434125,-200.08062811,0.00017999,2]
[320297085,1711265434135,-172.60528352,0.00017999,2]
[320297086,1711265434144,-172.95213357,0.00017999,2]
[320297087,1711265434154,-275.45080105,0.00017999,2]
[320297088,1711265434163,-155.07759302,0.00017999,2]
[320297089,1711265434172,-155.73419435,0.00017999,2]
[320297090,1711265434182,-250.0,0.00017999,2]
[320297091,1711265434191,-256359.90417847,0.00018,2]
[320297092,1711265434209,-11663.60978818,0.00018,2]
[320297093,1711265434230,-670.28116184,0.00018,2]
[320297094,1711265434242,-21266.32679558,0.00018,2]
[320297104,1711265438358,-27575.41727678,0.00018,2]
[320297105,1711265438373,-408.95720374,0.00018,2]
[320297106,1711265438386,-40370.92346485,0.00018,2]
[320297107,1711265438402,-424.88047589,0.00018,2]
[320297108,1711265438418,-400.2002814,0.00018,2]
[320297109,1711265438446,-436.11768654,0.00018,2]
[320297110,1711265438489,-632616.39112318,0.00018,2]
[320297111,1711265438505,-537.9361095,0.00018,2]
[320297112,1711265438709,-21134.57867182,0.00018,2]
[320297113,1711265438734,-3037.63281612,0.00018,2]
[320297119,1711265440438,-3369.29959666,0.00018,2]
[320297120,1711265440496,-270.15715355,0.00018,2]
[320297121,1711265441232,-642.94,0.00018,2]
[320297137,1711265443381,-345.30254868,0.00018,2]
[320297144,1711265443438,-3002.72487069,0.00018,2]
[320297158,1711265443601,-8653.9969606,0.00018,2]
[320297159,1711265443657,-363.74397363,0.00018,2]
[320297160,1711265443672,-21304.20400186,0.00018,2]
[320297161,1711265443684,-306.67002228,0.00018032,2]
[320297162,1711265443695,-164.47,0.00018047,2]
[320297163,1711265443708,-300.0,0.00018132,2]
[320297164,1711265443719,-841.6435295,0.00018184,2]
[320297165,1711265443731,-450.0,0.00018269,2]
[320297166,1711265443743,-600.0,0.00018406,2]
[320297167,1711265443753,-750.0,0.00018543,2]
[320297168,1711265443765,-500.0,0.00018547,2]
[320297169,1711265443776,-900.0,0.0001868,2]
[320297170,1711265443788,-840.0,0.00018692,2]
[320297171,1711265443799,-193.0,0.00018747,2]
[320297172,1711265443811,-1050.0,0.00018817,2]
[320297173,1711265443826,-200.0,0.00018848,2]
[320297174,1711265443837,-800.0,0.00018848,2]
[320297175,1711265443848,-200.0,0.00018848,2]
[320297176,1711265443859,-500.0,0.00018848,2]
[320297177,1711265443869,-150.787,0.0001893,2]
[320297178,1711265443880,-2945.536,0.0001893,2]
[320297179,1711265443892,-1465.89,0.0001893,2]
[320297181,1711265443904,-359.514,0.0001893,2]
[320297182,1711265443915,-1138.0,0.0001893,2]
[320297183,1711265443927,-1630.633,0.0001893,2]
[320297184,1711265443938,-2431.037,0.0001893,2]
[320297185,1711265443950,-214.0,0.0001893,2]
[320297186,1711265443962,-4766.0,0.0001893,2]
[320297187,1711265443973,-963.817,0.0001893,2]
[320297188,1711265443986,-1384.689,0.0001893,2]
[320297189,1711265443996,-458.82,0.0001893,2]
[320297190,1711265444009,-2418.0,0.0001893,2]
[320297191,1711265444020,-1045.0,0.0001893,2]
[320297192,1711265444031,-1225.0,0.0001893,2]
[320297193,1711265444042,-1256.182,0.0001893,2]
[320297194,1711265444053,-538.152,0.0001893,2]
[320297195,1711265444064,-1270.166,0.0001893,2]
[320297196,1711265444075,-1200.0,0.00018954,2]
[320297197,1711265444087,-133415.44484839,0.00019,2]
[320297198,1711265444102,-2948.78650311,0.00019,2]
[320297199,1711265444128,-973.49941716,0.00019,2]
[320297200,1711265444141,-402.54172578,0.00019,2]
[320297211,1711265446494,-604.0,0.00018182,2]
[320297212,1711265446506,-393.88945514,0.00018999,2]
[320297213,1711265446554,-566.00216989,0.00018999,2]
[320297214,1711265446565,-30527.43237246,0.00019,2]
[320297215,1711265446577,-312.83916537,0.00019,2]
[320297216,1711265446588,-501.0,0.00019,2]
[320297217,1711265446599,-188.54145948,0.00019075,2]
[320297218,1711265446608,-252.90522135,0.00019087,2]
[320297219,1711265446618,-1350.0,0.00019091,2]
[320297220,1711265446627,-11440.30313992,0.000191,4]
[320297221,1711265446648,-989.90451894,0.000191,4]
[320297222,1711265446673,-316.67051254,0.000191,4]
[320297223,1711265446783,-2989.12,0.000191,4]
[320297224,1711265446842,-319.83574,0.000191,4]
[320297228,1711265881474,160.41,0.00014151,2]
[320297229,1711265914004,200.0,0.00019,15]
[320297230,1711265933739,200.0,0.00019,45]
[320297231,1711265949290,201.0,0.00019,16]
[320297232,1711265967673,203.54008,0.00019,50]
[320297233,1711266296102,10000.0,0.0002,10]
[320297282,1711266631581,-323.71729788,0.00015585,2]
[320297283,1711266631591,-415.37,0.00015586,2]
[320297284,1711266631602,-534.40851978,0.00016206,2]
[320297285,1711266631611,-490.4856628,0.000164,2]
[320297286,1711266631620,-250.0,0.00017432,2]
[320297287,1711266631630,-4144.36645644,0.00017446,2]
[320297288,1711266631643,-844.17433085,0.00017446,2]
[320297289,1711266631660,-448.74875887,0.00017446,2]
[320297290,1711266631694,-104.57045384,0.00017446,2]
[320297291,1711266631703,-553.29295006,0.00017446,2]
[320297292,1711266631715,-279.69657276,0.00017446,2]
[320297293,1711266631727,-867.66997499,0.00017446,2]
[320297294,1711266631777,-1064.30050219,0.00017446,2]
[320297295,1711266631787,-262.29,0.00017477,2]
[320297296,1711266631797,-250.0,0.00017504,2]
[320297297,1711266631808,-1995.25272158,0.00017507,2]
[320297298,1711266632194,-498.85754035,0.00017507,2]
[320297299,1711266632207,-1071.35837695,0.00017507,2]
[320297300,1711266632252,-384.05136112,0.00017507,2]
[320297301,1711266632261,-1000.0,0.00017527,2]
[320297302,1711266632271,-506.77,0.00017539,2]
[320297303,1711266632281,-1676.3341,0.00017589,2]
[320297304,1711266632291,-200.0,0.00017597,2]
[320297305,1711266632300,-3648.13,0.00017597,2]
[320297306,1711266632309,-499.99,0.00017643,2]
[320297307,1711266632319,-182.88,0.00017698,2]
[320297308,1711266632328,-157.93,0.00017704,2]
[320297309,1711266632338,-160.0,0.0001778,2]
[320297310,1711266632350,-415.37,0.0001785,2]
[320297311,1711266632359,-2228.74456293,0.00017983,2]
[320297312,1711266632372,-253.083484,0.00017983,2]
[320297325,1711266637651,-2072.08321387,0.00017983,2]
[320297326,1711266637661,-182.88,0.00018006,2]
[320297327,1711266637671,-178.5864519,0.00018179,2]
[320297328,1711266637905,-590.70750779,0.0001818,2]
[320297329,1711266637915,-633.85991467,0.0001818,2]
[320297330,1711266637928,-591.97620346,0.0001818,2]
[320297332,1711266637937,-155.40458974,0.0001818,2]
[320297333,1711266637946,-176.7696733,0.0001818,2]
[320297334,1711266637955,-267.62205762,0.0001818,2]
[320297335,1711266637965,-679.58094591,0.0001818,2]
[320297336,1711266637974,-190.9490887,0.00018181,2]
[320297337,1711266637984,-197.75311911,0.00018181,2]
[320297339,1711266637993,-155.4700667,0.00018181,2]
[320297340,1711266638002,-155.42568585,0.00018181,2]
[320297341,1711266638013,-960.0,0.00018291,2]
[320297342,1711266638022,-155.701,0.00018291,2]
[320297343,1711266638031,-536.0,0.00018291,2]
[320297344,1711266638041,-1225.0,0.00018291,2]
[320297345,1711266638050,-435.889,0.00018291,2]
[320297346,1711266638059,-801.0,0.00018291,2]
[320297347,1711266638068,-278.0,0.00018291,2]
[320297348,1711266638078,-604.0,0.00018291,2]
[320297349,1711266638087,-358.0,0.00018291,2]
[320297350,1711266638097,-1019.508,0.00018291,2]
[320297351,1711266638107,-213.0,0.00018291,2]
[320297352,1711266638116,-150.0,0.00018291,2]
[320297353,1711266638125,-150.0,0.00018291,2]
[320297354,1711266638135,-182.88,0.00018313,2]
[320297355,1711266638144,-182.88,0.00018621,2]
[320297356,1711266638154,-179.65792933,0.00018893,2]
[320297357,1711266638215,-20.34207067,0.00018893,2]
[320297358,1711266638224,-800.0,0.00018893,2]
[320297359,1711266638233,-200.0,0.00018893,2]
[320297360,1711266638243,-500.0,0.00018893,2]
[320297361,1711266638252,-2017.2717,0.00018899,2]
[320297362,1711266638262,-13316.02615309,0.000189,2]
[320297363,1711266638274,-8733.24163979,0.000189,2]
[320297364,1711266638286,-5358.22290712,0.000189,2]
[320297365,1711266638295,-250.12548652,0.00018907,2]
[320297366,1711266638305,-182.25674417,0.00018914,2]
[320297367,1711266638315,-42676.91081777,0.00018999,2]
[320297372,1711266639604,-3155.35163516,0.00018999,2]
[320297396,1711266642960,-5969.29022078,0.00018999,2]
[320297398,1711266642973,-4604.3924688,0.00018999,2]
[320297423,1711266645625,-311.37144885,0.00018999,2]
[320297428,1711266645638,-495.458092,0.00018999,2]
[320297437,1711266690882,150.0,0.00024795,120]
[320297441,1711266942695,1000.0,0.000255,120]
[320297442,1711267469987,398.82,0.00014825,2]
[320297443,1711267537489,190396.25856639,0.00014825,2]
[320297456,1711267831714,-258.15917987,0.00015116,2]
[320297458,1711267831724,-2215.6645,0.00015117,2]
[320297459,1711267831734,-523.04649154,0.00015217,2]
[320297460,1711267831743,-323.71729788,0.00015217,2]
[320297461,1711267831753,-614.0498144,0.00015218,2]
[320297462,1711267831762,-659.59725038,0.00015219,2]
[320297463,1711267831773,-251.49,0.00016282,2]
[320297464,1711267831782,-250.0,0.00016319,2]
[320297465,1711267831791,-150.0,0.00016442,2]
[320297466,1711267831802,-555.94,0.00016495,2]
[320297467,1711267831812,-200.0,0.00016548,2]
[320297468,1711267831822,-615.58,0.00016572,2]
[320297469,1711267831832,-150.0,0.00016721,2]
[320297470,1711267831842,-150.0,0.00016721,2]
[320297471,1711267831852,-6050.48,0.00016722,2]
[320297472,1711267831863,-250.0,0.00016767,2]
[320297473,1711267831872,-546.71,0.00016817,2]
[320297474,1711267831883,-150.99,0.00016818,2]
[320297475,1711267831893,-1842.63,0.00016826,2]
[320297476,1711267831902,-499.99,0.00016826,2]
[320297477,1711267831912,-453.17223949,0.00016918,2]
[320297478,1711267831921,-179.39,0.00016929,2]
[320297479,1711267831931,-174.47,0.00016942,2]
[320297480,1711267831940,-800.0,0.00017077,2]
[320297481,1711267831950,-398.82,0.00017089,2]
[320297482,1711267831960,-179.39,0.0001737,2]
[320297483,1711267831970,-1000.0,0.00017441,2]
[320297484,1711267831979,-14968.66865071,0.00017441,2]
[320297485,1711267831988,-556.74,0.00017441,2]
[320297486,1711267831999,-10162.62583271,0.00017442,2]
[320297487,1711267832009,-3372.81477738,0.00017444,2]
[320297488,1711267832018,-2500.0,0.000175,2]
[320297489,1711267832027,-179.39,0.00017811,2]
[320297490,1711267832036,-210.39,0.00017818,2]
[320297491,1711267832046,-198.92431824,0.00017898,2]
[320297492,1711267832056,-151.032415,0.00017898,2]
[320297493,1711267832065,-151.032415,0.00017898,2]
[320297494,1711267832074,-151.032415,0.00017898,2]
[320297495,1711267832083,-151.032415,0.00017898,2]
[320297496,1711267832094,-151.032415,0.00017898,2]
[320297497,1711267832104,-151.032415,0.00017898,3]
[320297498,1711267832114,-151.032415,0.00017898,3]
[320297499,1711267832123,-151.032415,0.00017898,3]
[320297500,1711267832132,-151.032415,0.00017898,3]
[320297501,1711267832142,-151.032415,0.00017898,3]
[320297502,1711267832152,-151.032415,0.00017898,3]
[320297503,1711267832161,-151.032415,0.00017898,2]
[320297504,1711267832171,-151.032415,0.00017898,3]
[320297505,1711267832186,-151.032415,0.00017898,3]
[320297507,1711267832243,-255.48593927,0.00017898,2]
[320297509,1711267832253,-485.0712318,0.00017898,2]
[320297510,1711267832262,-284.38164041,0.00017898,2]
[320297511,1711267832274,-202.79370725,0.00017899,2]
[320297512,1711267832284,-7202.04348858,0.00017899,2]
[320297513,1711267832294,-137062.1149,0.000179,2]
[320297514,1711267832304,-3458.74255516,0.000179,2]
[320297515,1711267832315,-5101.0751,0.000179,2]
[320297516,1711267832327,-175.52893305,0.000179,2]
[320297517,1711267832336,-214.87821336,0.000179,2]
[320297518,1711267832346,-215.23616532,0.000179,2]
[320297519,1711267832356,-225.74120646,0.000179,2]
[320297520,1711267832366,-1997.28129462,0.000179,2]
[320297521,1711267832377,-5117.81831263,0.000179,2]
[320297522,1711267832388,-2459.6118528,0.000179,2]
[320297523,1711267832398,-10669.6053625,0.000179,2]
[320297524,1711267832407,-1188.60774999,0.000179,2]
[320297525,1711267832418,-219.34731472,0.000179,2]
[320297526,1711267832430,-570.35678177,0.000179,2]
[320297527,1711267832440,-391.48033762,0.000179,2]
[320297528,1711267832452,-164.39,0.00017967,2]
[320297529,1711267832463,-643.91,0.00017974,2]
[320297530,1711267832473,-184.90887628,0.00017982,2]
[320297531,1711267832484,-199.69415296,0.0001799,2]
[320297532,1711267832495,-199.69415296,0.0001799,2]
[320297533,1711267832505,-174892.01456102,0.00018,2]
[320297534,1711267832539,-16881.77007703,0.00018,2]
[320297535,1711267832552,-16148.566512,0.00018,2]
[320297536,1711267832582,-648.09,0.00018,2]
[320297537,1711267832595,-1940.285,0.00018,2]
[320297538,1711267832614,-625.0,0.00018,2]
[320297539,1711267832647,-473.60372956,0.00018,2]
[320297556,1711267837837,-1558.38965711,0.00018,2]
[320297557,1711267837896,-645863.75427975,0.00018,2]
[320297558,1711267837956,-863611.47976536,0.00018,2]
[320297559,1711267837969,-837.63616696,0.00018,2]
[320297560,1711267838013,-265.432,0.00018,2]
[320297561,1711267838026,-2309.28934368,0.00018,2]
[320297573,1711267839785,-268.64651955,0.00018,2]
[320297574,1711267839798,-6701.3737331,0.00018,2]
[320297575,1711267839844,-86654.13,0.00018,2]
[320297576,1711267839857,-43674.629515,0.00018,2]
[320297577,1711267839904,-1014.87505337,0.00018,2]
[320297578,1711267839966,-3555.66,0.00018,2]
[320297579,1711267839978,-502.94510104,0.00018,2]
[320297580,1711267839990,-1358.69509994,0.00018,2]
[320297581,1711267840030,-6478.5,0.00018,2]
[320297582,1711267840146,-912.17020363,0.00018,2]
[320297604,1711267843233,-30955.84529329,0.00018,2]
[320297698,1711267845908,-396.91034731,0.00017998,2]
[320297699,1711267845918,-613.06273192,0.00017999,2]
[320297700,1711267845929,-67995.23702341,0.00018,2]
[320297701,1711267845939,-13449.64877241,0.00018,2]
[320297702,1711267846133,-287565.44637615,0.00018,2]
[320297703,1711267846147,-32574.939415,0.00018,2]
[320297704,1711267846160,-74348.24003129,0.00018,2]
[320297705,1711267846170,-1500.0,0.00018,2]
[320297706,1711267846179,-1500.0,0.00018,2]
[320297707,1711267846188,-3458.74255507,0.00018082,2]
[320297708,1711267846198,-164.39,0.00018147,2]
[320297709,1711267846206,-2459.61185277,0.00018186,2]
[320297710,1711267846216,-167.0,0.00018203,2]
[320297711,1711267846225,-3458.74255507,0.00018264,2]
[320297712,1711267846234,-325.532,0.00018291,2]
[320297713,1711267846244,-642.053,0.00018291,2]
[320297714,1711267846253,-395.659,0.00018291,2]
[320297716,1711267846262,-164.39,0.00018327,2]
[320297718,1711267846271,-187.877326,0.00018356,2]
[320297720,1711267846281,-3458.74255507,0.00018445,2]
[320297722,1711267846289,-2459.61185277,0.00018471,2]
[320297724,1711267846298,-1500.0,0.000185,2]
[320297726,1711267846308,-200.0,0.00018616,2]
[320297728,1711267846317,-3458.74255507,0.00018627,2]
[320297730,1711267846326,-603.57569566,0.0001872,2]
[320297732,1711267846335,-2459.61185277,0.00018757,2]
[320297734,1711267846344,-150.0,0.00018796,2]
[320297736,1711267846353,-3458.74255507,0.00018809,2]
[320297738,1711267846362,-338.68849338,0.0001881,2]
[320297740,1711267846371,-3000.0,0.0001881,2]
[320297743,1711267846381,-200.0,0.00018893,2]
[320297744,1711267846390,-800.0,0.00018893,2]
[320297747,1711267846400,-200.0,0.00018893,2]
[320297749,1711267846409,-3537.6492,0.000189,2]
[320297751,1711267846418,-274.9029,0.000189,2]
[320297753,1711267846427,-163.17830861,0.000189,2]
[320297755,1711267846436,-1188.60774999,0.000189,2]
[320297757,1711267846445,-570.35678175,0.000189,2]
[320297759,1711267846454,-175.67266921,0.00018963,2]
[320297761,1711267846463,-154.98941204,0.00018966,2]
[320297762,1711267846472,-182.67737618,0.00018972,2]
[320297764,1711267846481,-185.37408407,0.00018986,2]
[320297767,1711267846491,-26110.91393676,0.0001899,2]
[320297769,1711267846500,-199.69415296,0.0001899,2]
[320297771,1711267846509,-3458.74255507,0.00018991,2]
[320297773,1711267846518,-40764.50875577,0.00019,2]
[320297775,1711267846530,-35695.40222607,0.00019,2]
[320297777,1711267846545,-26066.05747849,0.00019,2]
[320297779,1711267846556,-40016.68702564,0.00019,2]
[320297782,1711267846567,-197729.58213435,0.00019,2]
[320297795,1711267846706,-36234.18338146,0.00019,2]
[320297796,1711267846721,-141748.81726207,0.00019,2]
[320297797,1711267846733,-174837.96877735,0.00019,2]
[320297798,1711268077289,-235.22806469,0.00016171,2]
[320297799,1711268077310,-294.72243506,0.00016172,2]
[320297800,1711268077332,-323.71729788,0.00016172,2]
[320297801,1711268077355,-383.78,0.00016176,2]
[320297802,1711268077377,-762.55220237,0.00017712,2]
[320297803,1711268078051,-117.44779763,0.00017712,2]
[320297804,1711268078072,-625.0,0.000178,2]
[320297805,1711268078094,-625.0,0.000178,2]
[320297806,1711268078114,-632.55220237,0.00017861,2]
[320297807,1711268078463,-2000.0,0.00017861,2]
[320297808,1711268078935,-2000.0,0.00017861,2]
[320297809,1711268079437,-2000.0,0.00017861,2]
[320297810,1711268080195,-2000.0,0.00017861,2]
[320297811,1711268080543,-2000.0,0.00017861,2]
[320297812,1711268081128,-2000.0,0.00017861,2]
[320297813,1711268085491,-119.37553894,0.00017861,2]
[320297814,1711268344054,-323.71729788,0.0001696,2]
[320297815,1711268344076,-150.09,0.00016961,2]
[320297816,1711268344097,-403.61212232,0.00016966,2]
[320297817,1711268344117,-2392.5805798,0.00017229,2]
[320297818,1711268401237,-155.0,0.00015267,2]
[320297819,1711268438690,245.47,0.0002498,120]
[320297820,1711268447042,265.76402313,0.00015267,2]
[320297821,1711268489467,112.23597687,0.00015267,2]
[320297822,1711268730855,-332.05150968,0.00015259,2]
[320297823,1711268730878,-323.71729788,0.0001526,2]
[320297824,1711268730900,-374.39899118,0.00015261,2]
[320297825,1711268730921,-150.0,0.00015266,2]
[320297826,1711268730943,-378.64,0.00015268,2]
[320297827,1711268730966,-5356.2287349,0.00016122,2]
[320297828,1711268730987,-2186.53,0.00016123,2]
[320297829,1711268731007,-586.8,0.00016197,2]
[320297830,1711268731030,-172.41,0.00016373,2]
[320297831,1711268731052,-296.0,0.00016394,2]
[320297832,1711268731075,-500.0,0.00016439,2]
[320297833,1711268731096,-1694.47,0.00016485,2]
[320297834,1711268731119,-1888.68,0.0001656,2]
[320297835,1711268731141,-534.83,0.00016589,2]
[320297836,1711268731164,-1981.52,0.0001662,2]
[320297837,1711268731185,-499.99,0.0001662,2]
[320297838,1711268731210,-245.47,0.00016653,2]
[320297839,1711268731233,-250.0,0.00016653,2]
[320297840,1711268731255,-172.41,0.00016799,2]
[320297841,1711268731278,-169.14,0.00016826,2]
[320297842,1711268731298,-2751.0,0.00016901,2]
[320297843,1711268731319,-1639.63,0.00016956,2]
[320297844,1711268731339,-2813.39,0.00017134,2]
[320297845,1711268731362,-172.41,0.00017226,2]
[320297846,1711268731382,-155.31176019,0.00017227,2]
[320297847,1711268731403,-520.60897951,0.00017227,2]
[320297848,1711268731424,-378.70214035,0.00017227,2]
[320297849,1711268731444,-155.12417673,0.00017228,2]
[320297850,1711268731466,-598.86278884,0.00017228,2]
[320297851,1711268731487,-113.6794202,0.00017229,2]
[320297852,1711268731508,-22607.99420054,0.00017229,2]
[320297853,1711268842677,-290.93,0.00016001,2]
[320297854,1711268842699,-1709.07,0.00016908,2]
[320297855,1711268843935,-2000.0,0.00016908,2]
[320297856,1711268844691,-2000.0,0.00016908,2]
[320297857,1711268845275,-2000.0,0.00016908,2]
[320297858,1711268846181,-2000.0,0.00016908,2]
[320297859,1711268864273,1000.0,0.00025491,120]
[320297860,1711268897635,1000.0,0.00025491,120]
[320297861,1711268956915,1000.0,0.00025491,120]
[320297872,1711269031900,-323.71729788,0.00015246,2]
[320297873,1711269031911,-155.64624942,0.00015247,2]
[320297874,1711269032242,-204.05375058,0.00015247,2]
[320297882,1711269032689,-396.83,0.00016908,2]
[320297883,1711269032714,-250.0,0.00016908,2]
[320297884,1711269032730,-2405.29,0.00017029,2]
[320297885,1711269032740,-250.0,0.00017029,2]
[320297886,1711269032750,-267.41,0.00017029,2]
[320297887,1711269032760,-1320.68,0.00017029,2]
[320297888,1711269032769,-1463.72,0.00017029,2]
[320297889,1711269032779,-200.0,0.00017061,2]
[320297890,1711269032788,-160.43696332,0.00017128,2]
[320297891,1711269032798,-1464.10963641,0.00017132,2]